[Event "Israel-ch Semi-final 2022"]
[Site "Ramat Gan"]
[Date "2022.05.16"]
[Round "2.5"]
[White "Lahav, Michal"]
[Black "Aharonovich, Itamar"]
[Result "0-1"]
[ECO "C45"]
[WhiteElo "2199"]
[BlackElo "2324"]
[Annotator "TA"]
[PlyCount "140"]
[EventDate "2022.05.09"]
[EventType "swiss"]
[EventCountry "ISR"]
[SourceTitle "playchess.com"]
[Source "ChessBase"]
[SourceQuality "1"]
[TimeControl "40/5400+30:1800+30"]

{[%evp 14,140,-19,-7,-12,-58,-20,-29,-23,-24,-22,-20,-20,-10,-8,-10,-20,-21,-6,-12,-6,-8,-1,-3,0,0,11,10,5,9,9,0,8,0,0,0,0,0,0,0,15,2,3,3,2,0,0,0,0,0,8,0,0,0,18,18,18,0,0,0,0,0,0,-454,-449,-446,-385,-345,-499,-487,-414,-352,-157,-257,-257,-257,-257,-271,-69,-1118,-1083,-12299,-12739,-12741,-12738,-12683,-587,-29959,-12704,-29950,-9951,-6500,-7081,-5493,-5471,-5132,-5132,-5132,-5132,-5125,-4899,-29960,-29964,-29962,-29948,-29961,-3614,-29973,-29975,-29979,-29980,-29984,-29985,-29985,-29986,-29986,-29987,-29991,-29991,-29992,-29993,-29993,-29994,-29994,-29993,-29994,-29994,-29994,-29995]} 1. e4 {[%emt 0:00:01]} e5 {[%emt 0:04:22]} 2. Nf3 {[%emt 0:00:15]} Nc6 {[%emt 0:01:33]} 3. d4 {[%emt 0:00:17]} exd4 {[%emt 0:00:17]} 4. Nxd4 {[%emt 0:00:04]} Nf6 {[%emt 0:00:07][%cal Bg8f6,Bf6d5,Bd5b6][%mdl 32]} 5. Nxc6 {[%emt 0:00:33]} bxc6 {[%emt 0:00:26]} 6. e5 {[%emt 0:00:03]} Qe7 {[%emt 0:00:18]} 7. Qe2 {[%emt 0:00:04]} Nd5 {[%emt 0:00:13]} 8. h4 {[%emt 0:00:05]} Qe6 {[%emt 0:01:10] C45: Scotch Game.} 9. a3 {[%emt 0:11:46] [#]} (9. Nd2 $11) 9... d6 $146 {[%emt 0:03:00]} ({Predecessor:} 9... Bc5 10. c4 Ne7 11. Nd2 d6 12. exd6 cxd6 13. Nb3 Bb6 14. Bg5 f6 15. Bf4 Nf5 16. O-O-O Qxe2 17. Bxe2 Bxf2 {1-0 (53) Bugayev,V-Estrada Nieto,J (2280) Chess.com INT 2021}) 10. c4 {[%emt 0:04:07]} Nb6 {[%emt 0:00:05] Black has an edge.} 11. Bf4 {[%emt 0:07:53]} dxe5 {[%emt 0:07:40]} 12. Qxe5 {[%emt 0:03:32]} Bd6 {[%emt 0:03:11]} 13. Qxe6+ {[%emt 0:00:06]} Bxe6 {[%emt 0:00:09]} 14. Bxd6 {[%emt 0:00:10]} cxd6 {[%emt 0:00:07]} 15. Nd2 {[%emt 0:00:08]} O-O-O {[%emt 0:02:41]} 16. O-O-O {[%emt 0:02:02]} a5 {[%emt 0:05:25]} 17. Bd3 {[%emt 0:14:27]} Kc7 {[%emt 0:03:26]} 18. Rhe1 {[%emt 0:02:33]} Nd7 {[%emt 0:06:59]} 19. Bc2 {[%emt 0:06:55]} h6 {[%emt 0:15:35]} 20. Ne4 {[%emt 0:07:29]} Nc5 {[%emt 0:00:24]} 21. Nxc5 {[%emt 0:36:10]} dxc5 {[%emt 0:00:04]} 22. Re4 {[%emt 0:00:06]} Rd6 {[%emt 0:03:05]} 23. Rxd6 {[%emt 0:02:19]} Kxd6 $11 {[%emt 0:00:07][%mdl 4096] Endgame KRB-KRB} 24. Bd3 {[%emt 0:00:07]} g5 {[%emt 0:02:15]} 25. Kd2 {[%emt 0:00:39]} f5 {[%emt 0:04:10]} 26. Re1 {[%emt 0:00:01]} Rb8 {[%emt 0:04:28]} 27. hxg5 {[%emt 0:01:07]} hxg5 {[%emt 0:00:38]} 28. Kc3 {[%emt 0:00:06]} Rh8 {[%emt 0:00:20] Inhibits Rh1.} 29. g3 {[%emt 0:01:15]} Rh2 {[%emt 0:03:29]} 30. Re2 {[%emt 0:00:02]} Rh3 {[%emt 0:09:00]} 31. Rd2 {[%emt 0:00:18]} Ke5 {[%emt 0:04:18]} 32. Bf1 {[%emt 0:01:13]} Rh1 {[%emt 0:00:33]} 33. Bd3 {[%emt 0:00:29]} Rc1+ {[%emt 0:02:07]} 34. Kb3 {[%emt 0:00:28] Black must now prevent Ka4.} f4 {[%emt 0:02:16]} 35. Re2+ {[%emt 0:00:36]} Kd6 {[%emt 0:00:29]} 36. gxf4 {[%emt 0:00:27]} gxf4 {[%emt 0:00:52]} 37. Bc2 {[%emt 0:00:34]} Bg4 {[%emt 0:00:47]} 38. f3 $2 {[%emt 0:00:29][%mdl 8192]} (38. Rd2+ $11 {and White has nothing to worry.} Ke5 39. Bd3) 38... Bxf3 $19 {[%emt 0:02:31]} 39. Rf2 {[%emt 0:00:23]} a4+ $1 {[%emt 0:03:37]} 40. Kxa4 {[%emt 0:00:33] [#]} Rxc2 $1 {[%emt 0:00:06][%mdl 512]} 41. Rxf3 {[%emt 0:30:05]} (41. Rxc2 Bd1 42. Kb3 f3) 41... Rxc4+ {[%emt 0:30:04] KR-KR} 42. Kb3 {[%emt 0:00:21]} Re4 {[%emt 0:00:34]} (42... Kd5 $1 $19 {And now ...Rd4 would win.} 43. Rf1 Rd4) 43. a4 {[%emt 0:01:08]} (43. Kc3 $17 {was called for.}) 43... Rb4+ $1 {[%emt 0:04:38]} 44. Ka3 {[%emt 0:00:00]} Kd5 {[%emt 0:00:00]} 45. b3 {[%emt 0:00:00]} Rd4 $2 {[%emt 0:00:00]} ({Black should try} 45... Ke4 $19 46. Rc3 f3 47. Rxc5 f2 48. Kxb4 f1=Q 49. Rxc6 Qf8+ 50. Kc3 Qg7+ 51. Kc2 Qa1) 46. a5 $2 {[%emt 0:00:00][%mdl 8192] Loses the game.} (46. Rc3 $15) 46... Ke4 {[%emt 0:00:00]} 47. Rc3 {[%emt 0:00:00]} f3 {[%emt 0:00:26]} 48. Rxc5 {[%emt 0:00:00]} f2 {[%emt 0:00:06]} 49. Rc1 {[%emt 0:00:00]} c5 {[%emt 0:00:22]} (49... Ke3 $142 {( -> ...Rf4)} 50. a6 c5) 50. Ra1 {[%emt 0:00:00]} Kd3 {[%emt 0:02:54]} (50... Ke3 $142 51. Rf1 Ke2 52. Rh1 f1=Q 53. Rxf1 Kxf1 54. Ka2 Ke2 55. Kb2 Kd3 56. Ka3 Kc3 57. a6 Rd6 58. Ka4 Rxa6+ 59. Kb5 Ra5+ $3 {[%mdl 512]} 60. Kxa5 Kxb3 61. Kb6 c4 62. Kc5 c3 63. Kd6 Kc4 64. Ke6 c2 65. Kf5 c1=Q 66. Kg4 Qe3 67. Kf5 Kd5 68. Kf6 Qf4+ 69. Kg6 Ke6 70. Kg7 Qg4+ 71. Kh6 Kf7 72. Kh7 Qh5#) 51. a6 {[%emt 0:00:04]} Ke2 {[%emt 0:00:26]} (51... Rd6 $142 52. Kb2 {[#]} Rxa6 $3 {[%mdl 512]} 53. Rxa6 f1=Q 54. Rd6+ Ke4 55. Rd2 c4 56. bxc4 Qxc4 57. Rg2 Kf3 58. Rd2 Qb4+ 59. Kc2 Ke3 60. Rd3+ Ke2 61. Rc3 Qa4+ 62. Rb3 Qa5 63. Rb2 Qc5+ 64. Kb3+ Kd3 65. Ka4 Qa7+ 66. Kb4 Qb6+ 67. Ka3 Qf6 68. Kb3 Qg7 69. Rb1 Qb7+ 70. Ka2 Qd5+ 71. Ka1 Kc3 72. Rb2 Qh1+ 73. Ka2 Qd1 74. Rh2 Qa4+ 75. Kb1 Qe4+ 76. Ka2 Qa8+ 77. Kb1 Qb8+ 78. Ka2 Qxh2+ 79. Ka3 Qb2+ 80. Ka4 Qb4#) 52. a7 {[%emt 0:00:30]} Rd8 {[%emt 0:00:06]} 53. Ka4 {[%emt 0:00:50]} Ra8 {[%emt 0:00:09]} 54. Kb5 {[%emt 0:00:25] [#]} Rxa7 $3 {[%emt 0:00:54][%mdl 512]} 55. Rxa7 {[%emt 0:00:10]} f1=Q {[%emt 0:00:05] KQ-KR} 56. Rc7 {[%emt 0:03:10]} Qb1 {[%emt 0:00:17]} 57. Rxc5 {[%emt 0:00:13]} Qxb3+ {[%emt 0:00:06]} 58. Kc6 {[%emt 0:00:07]} Kd3 {[%emt 0:00:08]} 59. Rd5+ {[%emt 0:00:22]} Kc4 {[%emt 0:00:30]} (59... Ke4 $142 60. Rd8 Qa4+ 61. Kb6 Kf5 62. Kc7 Qa5+ 63. Kd7 Qd5+ 64. Kc7 Qc4+ 65. Kd7 Qd5+ 66. Kc7 Qc4+ 67. Kd6 Qe6+ 68. Kc7 Qe7+ 69. Kc8 Ke6 70. Rg8 Qf7 71. Rh8 Qg7 72. Rd8 Qa7 73. Rd1 Qc5+ 74. Kb8 Qb4+ 75. Kc8 Qc4+ 76. Kd8 Qb3 77. Kc8 Qxd1 78. Kc7 Qd5 79. Kc8 Qd7+ 80. Kb8 Kd6 81. Ka8 Kc7 82. Ka7 Qa4#) 60. Rc5+ {[%emt 0:00:42]} Kd4 {[%emt 0:01:22] Black mates.} 61. Rb5 {[%emt 0:00:22]} Qe6+ {[%emt 0:00:10]} 62. Kb7 {[%emt 0:00:06]} Kc4 {[%emt 0:00:10]} 63. Rb6 {[%emt 0:00:13]} Qd7+ {[%emt 0:00:17]} 64. Kb8 {[%emt 0:00:40]} Kc5 {[%emt 0:00:32]} 65. Rb7 {[%emt 0:00:13]} Qd8+ {[%emt 0:00:06]} 66. Ka7 {[%emt 0:00:02]} Kc6 {[%emt 0:00:22]} 67. Rh7 {[%emt 0:00:27]} Qd4+ {[%emt 0:01:28]} 68. Kb8 {[%emt 0:00:16]} Qb4+ {[%emt 0:00:32]} 69. Ka8 {[%emt 0:01:19]} Qa3+ {[%emt 0:00:25]} 70. Kb8 {[%emt 0:00:05]} Qb3+ {[%emt 0:00:18] Weighted Error Value: White=0.89/Black=0.61} 0-1

[Event "Israel-ch Semi-final 2022"]
[Site "Ramat Gan"]
[Date "2022.05.16"]
[Round "2.6"]
[White "Ribshtein, Nati"]
[Black "Yaniv, Ori"]
[Result "1/2-1/2"]
[ECO "E04"]
[WhiteElo "2286"]
[BlackElo "2143"]
[Annotator "TA"]
[PlyCount "111"]
[EventDate "2022.05.09"]
[EventType "swiss"]
[EventCountry "ISR"]
[SourceTitle "playchess.com"]
[Source "ChessBase"]
[SourceQuality "1"]
[TimeControl "40/5400+30:1800+30"]

{[%evp 12,111,10,0,-6,-10,19,23,21,31,27,0,0,2,10,0,7,0,50,43,50,35,31,17,56,0,5,-18,-21,-68,-68,-68,-55,-78,-78,-82,-85,-154,-90,-90,-90,-91,-95,-101,-72,-83,0,0,0,0,0,0,0,0,0,0,0,0,0,-106,-110,-106,-106,-106,-106,-106,-106,-106,-93,-93,-93,-106,-93,-93,-93,-104,-104,-104,-104,-104,-104,-106,-106,-106,-64,-64,-64,-64,-64,-76,-64,-68,0,0,0,0,0,0,-8,-18,-18,-18]} 1. d4 {[%emt 0:00:07]} Nf6 {[%emt 0:00:13]} 2. c4 {[%emt 0:00:05]} e6 {[%emt 0:00:05]} 3. g3 {[%emt 0:00:04]} Bb4+ {[%emt 0:00:05]} 4. Nd2 {[%emt 0:00:05]} O-O {[%emt 0:00:13]} 5. Bg2 {[%emt 0:00:04]} d5 {[%emt 0:00:15]} 6. Ngf3 {[%emt 0:00:50]} dxc4 {[%emt 0:00:37]} 7. Qc2 {[%emt 0:00:18]} a5 {[%emt 0:00:23] E04: Open Catalan: 5 Nf3.} 8. a3 $1 {[%emt 0:00:58] 8.a3 is better than 8.0-0.} Be7 {[%emt 0:00:32]} (8... Bxd2+ $5 9. Bxd2 b5 $11) 9. Nxc4 {[%emt 0:03:25]} b5 {[%emt 0:09:31] White has an edge.} 10. Nce5 {[%emt 0:07:06]} Bb7 {[%emt 0:00:25]} 11. O-O {[%emt 0:00:46]} Be4 {[%emt 0:06:48] Against Qd3} 12. Qb3 {[%emt 0:06:02]} Qd5 {[%emt 0:03:35]} 13. Qxd5 {[%emt 0:00:40]} Nxd5 {[%emt 0:00:53]} 14. Bd2 {[%emt 0:07:22] [#]} c5 $146 {[%emt 0:12:49]} (14... Rd8 $11) ({Predecessor:} 14... f6 15. Ng4 Nd7 16. Ne3 N7b6 17. Nxd5 Bxd5 18. Rfc1 Rfc8 19. Be1 a4 20. Bc3 c5 21. dxc5 Bxc5 {½-½ (46) Korpa,B (2482)-Horvath,A (2476) Austria 2018}) 15. dxc5 $14 {[%emt 0:34:39]} Bxc5 {[%emt 0:00:31]} 16. Rac1 {[%emt 0:01:53]} Bb6 {[%emt 0:02:15]} 17. Bh3 {[%emt 0:04:01][%cal Oe5f7]} h6 {[%emt 0:07:19]} 18. a4 {[%emt 0:06:22]} (18. Rfd1 $14) 18... b4 {[%emt 0:04:28]} 19. Rc4 {[%emt 0:02:43]} Nf6 {[%emt 0:02:57]} 20. Rfc1 {[%emt 0:05:06]} (20. Rcc1 $11) 20... Bd5 $1 $15 {[%emt 0:01:37]} 21. Rc8 {[%emt 0:00:14]} Nbd7 $1 {[%emt 0:00:59]} 22. Rxa8 {[%emt 0:00:18]} Rxa8 {[%emt 0:00:23]} 23. Bg2 {[%emt 0:06:13]} Nc5 {[%emt 0:01:42]} 24. Nc4 {[%emt 0:07:14]} (24. Be3 $142 Nxa4 25. Bxb6 Nxb6 26. Nd3) 24... Nxa4 {[%emt 0:17:01]} ({Black should try} 24... Bxc4 25. Rxc4 Rd8) 25. b3 $17 {[%emt 0:01:39]} Bxc4 {[%emt 0:00:28]} 26. Rxc4 {[%emt 0:00:07] [#]} Nc5 {[%emt 0:01:13]} 27. Be3 {[%emt 0:00:06]} Ncd7 {[%emt 0:00:54]} 28. Nd4 {[%emt 0:00:23]} Nd5 {[%emt 0:07:17]} ({Better is} 28... Ra7 $17) 29. Bxd5 $11 {[%emt 0:01:32]} exd5 {[%emt 0:00:02]} 30. Rc6 {[%emt 0:00:03]} a4 {[%emt 0:02:05]} 31. bxa4 {[%emt 0:00:56]} Rxa4 {[%emt 0:00:06] [#] aiming for ...Bxd4.} 32. Rd6 $1 {[%emt 0:00:11][%csl LRd5,LRd7]} Bxd4 {[%emt 0:00:41]} 33. Bxd4 {[%emt 0:00:07][%mdl 4096] Endgame KRB-KRN} b3 {[%emt 0:00:15]} 34. Rxd5 {[%emt 0:00:33]} Nb6 {[%emt 0:05:47]} 35. Bxb6 {[%emt 0:04:42] KRB-KR} (35. Rb5 $1 $11 {was the only way to keep the balance.} Rxd4 36. Rxb6) 35... b2 $17 {[%emt 0:00:54]} 36. Rb5 {[%emt 0:00:09]} Ra1+ {[%emt 0:00:04]} 37. Kg2 {[%emt 0:00:03]} b1=Q {[%emt 0:00:06]} 38. Rxb1 {[%emt 0:00:03]} Rxb1 {[%emt 0:00:08] KR-KB} 39. Bd4 {[%emt 0:00:03]} f6 {[%emt 0:00:55]} 40. g4 {[%emt 0:00:16]} Kf7 {[%emt 0:00:15]} 41. e3 {[%emt 0:30:21]} Ke6 {[%emt 0:30:35]} 42. Kf3 {[%emt 0:00:47]} Rg1 {[%emt 0:08:44]} 43. h3 {[%emt 0:00:16]} h5 44. gxh5 {[%emt 0:03:07]} Rg5 {[%emt 0:05:00]} 45. h6 {[%emt 0:00:00]} g6 {[%emt 0:00:00]} 46. h4 {[%emt 0:00:00]} Rh5 {[%emt 0:00:00][%csl LRh4,LRh6]} 47. Kg4 {[%emt 0:00:00]} f5+ {[%emt 0:00:00]} 48. Kg3 {[%emt 0:00:00]} Rxh6 {[%emt 0:00:00]} 49. Bb6 {[%emt 0:00:00]} Kd5 {[%emt 0:00:00][%cal Og6g5]} 50. Bd8 {[%emt 0:00:00]} Ke4 {[%emt 0:00:00]} 51. f3+ {[%emt 0:00:00]} Kd3 {[%emt 0:00:00]} (51... Ke5 $15) 52. Kf4 $11 {[%emt 0:00:00] The position is equal.} Rh8 {[%emt 0:00:00]} 53. Bf6 {[%emt 0:00:00]} Re8 {[%emt 0:00:00]} (53... Rh5 $5 {[%cal Rd3c4]}) 54. Bd4 {[%emt 0:00:00]} Re6 {[%emt 0:00:00]} 55. h5 {[%emt 0:01:36]} gxh5 {[%emt 0:00:00] ( -> ...h4)} 56. Kxf5 {[%emt 0:00:06] Weighted Error Value: White=0.10 (very precise) /Black=0.09 (flawless)} 1/2-1/2

[Event "Israel-ch Semi-final 2022"]
[Site "Ramat Gan"]
[Date "2022.05.23"]
[Round "3.1"]
[White "Yaniv, Yuval"]
[Black "Dvoirys, Semen I."]
[Result "0-1"]
[ECO "B23"]
[WhiteElo "2301"]
[BlackElo "2439"]
[Annotator "TA"]
[PlyCount "76"]
[EventDate "2022.05.09"]
[EventType "swiss"]
[EventCountry "ISR"]
[SourceTitle "playchess.com"]
[Source "ChessBase"]
[SourceQuality "1"]
[TimeControl "40/5400+30:1800+30"]

{[%evp 9,76,0,0,0,-4,-13,0,0,0,0,0,0,0,0,0,0,0,0,0,0,0,0,12,0,22,17,19,12,19,-89,0,-30,0,-112,-83,-103,0,0,0,0,0,0,0,0,33,21,25,0,0,25,32,0,0,0,0,-150,79,87,143,-216,-216,-487,-464,-440,-435,-679,-511,-647,-449]} 1. e4 {[%emt 0:00:12]} c5 {[%emt 0:00:07]} 2. Nc3 {[%emt 0:00:17]} d6 {[%emt 0:00:34]} 3. d4 {[%emt 0:00:18]} cxd4 {[%emt 0:00:08]} 4. Qxd4 {[%emt 0:00:07]} Nc6 {[%emt 0:01:39]} 5. Qd2 {[%emt 0:02:18]} Nf6 {[%emt 0:00:31]} 6. b3 {[%emt 0:00:21] B23: Closed Sicilian: Lines without g3.} e6 {[%emt 0:05:38]} 7. Bb2 {[%emt 0:00:26]} a6 {[%emt 0:01:23] 7...d5 is a critical line.} 8. O-O-O {[%emt 0:00:28] The position is equal.} b5 {[%emt 0:01:51]} 9. f3 {[%emt 0:06:22]} Be7 {[%emt 0:00:22]} 10. Kb1 {[%emt 0:00:18]} O-O {[%emt 0:09:39]} 11. g4 {[%emt 0:03:55]} Nd7 {[%emt 0:04:44]} 12. h4 {[%emt 0:00:49]} Nc5 {[%emt 0:01:08]} 13. g5 {[%emt 0:03:26]} b4 {[%emt 0:00:25]} 14. Na4 {[%emt 0:10:16]} Nxa4 {[%emt 0:01:32]} 15. bxa4 {[%emt 0:01:10]} e5 {[%emt 0:03:50] [#]} 16. Bc4 $146 {[%emt 0:05:10]} ({Predecessor:} 16. Ne2 Na5 17. Ng3 Qc7 18. f4 Bd7 19. Nf5 Bxf5 20. exf5 Rfc8 21. f6 gxf6 22. gxf6 Bxf6 {1-0 (48) Aravindh,C (2605)-Sandipan,C (2545) Majitar 2019}) 16... Be6 {[%emt 0:00:32]} 17. Bb3 {[%emt 0:00:33]} Na5 {[%emt 0:01:38]} 18. f4 {[%emt 0:27:34]} Nc4 $1 {[%emt 0:03:41]} 19. Qxb4 {[%emt 0:01:00]} (19. Qf2 $11) 19... Rb8 {[%emt 0:04:39]} (19... Nxb2 $17 20. Kxb2 d5) 20. Qc3 {[%emt 0:01:56]} Qb6 {[%emt 0:05:27][%mdl 1024] White must now prevent ...Rfc8. Black has compensation.} 21. Ne2 {[%emt 0:07:25]} (21. f5 $11 {remains equal.} Rfc8 22. Qf3 (22. fxe6 $2 Na3+ 23. Ka1 Rxc3 $17) 22... Nxb2 23. Kxb2) 21... Rfc8 $1 $17 {[%emt 0:00:15]} 22. Qd3 {[%emt 0:00:35]} Ne3 {[%emt 0:01:45] Black is more active.} ({Black should play} 22... Nxb2 $17 23. Kxb2 Bc4) 23. Rc1 $1 $11 {[%emt 0:03:14]} d5 {[%emt 0:16:13]} 24. a5 {[%emt 0:07:40]} Qc5 {[%emt 0:00:53] And now ...dxe4 would win.} 25. Bxe5 {[%emt 0:00:37] Bd4 is the strong threat.} dxe4 {[%emt 0:00:10] The board is on fire.} 26. Qd4 {[%emt 0:00:23]} Rb7 {[%emt 0:07:01]} (26... Rb4 $5 {[%cal Rb4d4]} 27. Qxc5 Bxc5 $11) 27. Qxc5 {[%emt 0:02:50]} Bxc5 {[%emt 0:00:14][%cal Be7c5,Bc5a3,Ba3d6,Bd6f4][%mdl 32]} (27... Rxc5 28. Bd4 Bg4 29. Bxe3 $16 (29. Ng3 Nc4 $14)) 28. Ng3 {[%emt 0:00:26]} Ba3 {[%emt 0:06:57]} 29. Bb2 {[%emt 0:05:43]} Bd6 {[%emt 0:00:17]} 30. Rce1 {[%emt 0:02:05]} (30. f5 $5 {[%cal Rf5e6]} Bd5 31. Rh3 $11) 30... Nxc2 {[%emt 0:03:54]} 31. Nxe4 {[%emt 0:06:16]} (31. Bxc2 Rcb8 32. Bb3 Bxb3 33. axb3 Rxb3 $17) 31... Bxf4 {[%emt 0:06:51]} 32. Bxc2 {[%emt 0:01:34]} ({Better is} 32. Ref1 $11 Bb8 33. Rf3 (33. Bxc2 Bxa2+ 34. Kxa2 Rxc2 $15)) 32... Bxa2+ $2 {[%emt 0:00:10] [#]} 33. Ka1 $16 {[%emt 0:00:05]} ({Of course not} 33. Kxa2 Rxc2 34. Rb1 Be5 $17) 33... Rxc2 {[%emt 0:01:21]} (33... Be6 $142 34. Bc3 Bd2 35. Nxd2 (35. Bxd2 Rxc2 36. Nc3 Rxd2 $17) 35... Rxc3) 34. Rhf1 $2 {[%emt 0:01:07][%mdl 8192] White does not recover from this.} (34. Nc5 $1 $16 {[%cal Re1e8] is forced if you want to stay better.} Rb8 {[#]} 35. Nxa6 $1 Rcxb2 36. Nxb8 Rxb8 37. Kxa2) 34... Be6 $40 {[%emt 0:00:57][%mdl 128] aiming for ...Be5. Black attacks with force.} ({Stronger than} 34... Rcxb2 35. Nc5 Rb1+ 36. Kxa2 Rxe1 37. Rxe1 $17) 35. Rxf4 {[%emt 0:00:31]} (35. Nc5 Rxc5 36. Rxf4) 35... Rcxb2 {[%emt 0:00:59][%csl Ge6][%cal Rb2a2,Bc2b2,Bb2b3,Bb3a3,Ba3a2][%mdl 32] Black is clearly winning.} ({Don't go for} 35... Rbxb2 $2 36. Nc5 $19) 36. Nc3 {[%emt 0:00:08] Against Ra2+} R2b3 {[%emt 0:00:19] ( -> ...Ra3+)} 37. Rc4 {[%emt 0:00:46]} (37. Nb1 $142 Bd7 38. Rf2) 37... Ra3+ {[%emt 0:00:09]} 38. Na2 {[%emt 0:00:01]} Rxa2+ {[%emt 0:00:16] Weighted Error Value: White=0.45/Black=0.21 (precise)} 0-1

[Event "Israel-ch Semi-final 2022"]
[Site "Ramat Gan"]
[Date "2022.05.23"]
[Round "3.2"]
[White "Aharonovich, Itamar"]
[Black "Zemach, Nadav"]
[Result "*"]
[WhiteElo "2324"]
[BlackElo "2238"]
[Annotator "TA"]
[PlyCount "29"]
[EventDate "2022.05.09"]
[EventType "swiss"]
[EventCountry "ISR"]
[SourceTitle "playchess.com"]
[Source "ChessBase"]
[SourceQuality "1"]
[TimeControl "40/5400+30:1800+30"]

{[%evp 12,14,31,0,0]} 1. e4 {[%emt 0:00:07]} c6 {[%emt 0:00:07]} 2. Nc3 {[%emt 0:01:35]} d5 {[%emt 0:00:07]} 3. Nf3 {[%emt 0:00:05]} Bg4 {[%emt 0:00:09]} 4. h3 {[%emt 0:00:08]} Bxf3 {[%emt 0:00:05]} 5. Qxf3 {[%emt 0:00:07]} e6 {[%emt 0:00:02]} 6. d4 {[%emt 0:00:09]} dxe4 {[%emt 0:01:15]} 7. Nxe4 {[%emt 1:31:49]} Qxd4 {[%emt 0:01:42] [#] An uneventful encounter. B11: Caro-Kann: Two Knights Variation.} {Predecessor:} 8. Bd3 $146 Nd7 9. c3 Qd5 10. Qg3 Ngf6 11. Nxf6+ Nxf6 12. Bc2 O-O-O 13. Be3 Qa5 14. O-O Nd5 15. Bd4 {0-1 (56) Nepomniachtchi,I (2775)-Mamedyarov,S (2765) Paris 2019} *

[Event "Israel-ch Semi-final 2022"]
[Site "Ramat Gan"]
[Date "2022.05.23"]
[Round "3.2"]
[White "Uritsky, Yonathan"]
[Black "Mordechai, Hanan"]
[Result "0-1"]
[ECO "B11"]
[WhiteElo "2072"]
[BlackElo "2313"]
[Annotator "TA"]
[PlyCount "80"]
[EventDate "2022.05.09"]
[EventType "swiss"]
[EventCountry "ISR"]
[SourceTitle "playchess.com"]
[Source "ChessBase"]
[SourceQuality "1"]
[TimeControl "40/5400+30:1800+30"]

{[%evp 12,80,18,-8,-8,-14,0,0,-6,0,-5,0,0,-26,-19,-24,0,-12,-9,-41,-51,-50,-22,-59,-66,-93,-37,-89,-66,-88,-45,-47,-41,-66,-66,-150,-54,-200,-204,-185,-188,-244,-170,-204,-218,-250,-247,-303,-314,-318,-323,-393,-281,-427,-404,-480,-351,-450,-439,-537,-529,-526,-529,-517,-512,-516,-499,-497,-525,-790,-597]} 1. e4 {[%emt 0:00:07]} c6 {[%emt 0:00:07]} 2. Nc3 {[%emt 0:01:35][%cal Bb1c3,Bc3e4,Be4d2,Bd2f3,Bf3d4][%mdl 32]} d5 {[%emt 0:00:07]} 3. Nf3 {[%emt 0:00:05]} Bg4 {[%emt 0:00:09]} 4. h3 {[%emt 0:00:08]} Bxf3 {[%emt 0:00:05]} 5. Qxf3 {[%emt 0:00:07]} e6 {[%emt 0:00:02]} 6. d4 {[%emt 0:00:09]} dxe4 {[%emt 0:01:15]} 7. Nxe4 {[%emt 0:00:23]} Qxd4 {[%emt 0:01:42] B11: Caro-Kann: Two Knights Variation.} 8. c3 {[%emt 0:02:32]} Qd5 {[%emt 0:05:12]} 9. Bg5 {[%emt 0:04:40] [#] Black must now prevent Rd1.} f5 {[%emt 0:18:48] The position is equal.} 10. Nd2 {[%emt 0:00:42] And now Bc4 would win.} Qxf3 {[%emt 0:02:28]} 11. Nxf3 {[%emt 0:00:44] aiming for 0-0-0.} ({Much worse is} 11. gxf3 Ne7 $17) 11... h6 $1 {[%emt 0:02:41]} 12. Bf4 {[%emt 0:02:07] Hoping for Bc4.} Nf6 {[%emt 0:06:01]} 13. O-O-O {[%emt 0:02:13] [#] Threatens to win with Nd4.} Nd5 $146 {[%emt 0:05:14]} ({Predecessor:} 13... Nbd7 14. Nd4 Kf7 15. Bc4 Nd5 16. Bh2 g6 17. Rhe1 Re8 18. g4 Bc5 19. Re2 a6 {0-1 (63) Quesada Perez,Y (2608)-Inarkiev,E (2688) Havana 2013}) 14. Bh2 {[%emt 0:02:23]} Bc5 {[%emt 0:10:55]} 15. Nd4 {[%emt 0:01:17]} Kf7 {[%emt 0:00:55]} 16. Bc4 {[%emt 0:01:46]} Re8 {[%emt 0:08:00]} 17. Rhe1 {[%emt 0:02:34][%cal Od4e6]} Nd7 {[%emt 0:01:28]} 18. Re2 {[%emt 0:03:06]} Kf6 {[%emt 0:07:37]} (18... Bxd4 $17 19. Rxd4 b5) 19. a4 {[%emt 0:06:37]} (19. Nf3 $15) 19... a5 {[%emt 0:01:08]} 20. Rde1 {[%emt 0:02:48]} e5 {[%emt 0:02:33]} 21. Bxd5 {[%emt 0:01:14]} cxd5 {[%emt 0:00:53]} 22. Nb5 {[%emt 0:00:20]} Rac8 {[%emt 0:02:36] Prevents Nc7.} 23. Kb1 {[%emt 0:00:50] [#]} (23. g4 $1 $15) 23... g5 {[%emt 0:02:33]} ({Black should play} 23... Re7 $1 $17 24. b3 f4) 24. Rd1 {[%emt 0:04:38] Loses the game.} (24. f4 $1 $15) 24... Nb6 $19 {[%emt 0:00:19]} 25. b3 {[%emt 0:02:44]} f4 {[%emt 0:01:08]} 26. Kb2 {[%emt 0:02:06]} (26. Rc2 $142) 26... Re7 {[%emt 0:01:32]} 27. Bg1 {[%emt 0:00:34]} e4 {[%emt 0:02:10]} 28. Nd4 {[%emt 0:02:54]} Bd6 {[%emt 0:01:03]} 29. Red2 {[%emt 0:03:58]} Be5 {[%emt 0:01:11]} 30. Nb5 {[%emt 0:00:05]} Rc5 {[%emt 0:00:52][%cal Oe7c7]} 31. Re2 {[%emt 0:05:31]} Re8 {[%emt 0:01:19][%cal Be7e8,Be8c8,Bc8c3][%mdl 32]} 32. Rc1 {[%emt 0:01:10]} (32. f3 $142 e3 33. g3) 32... Rec8 {[%emt 0:00:28]} 33. Rcc2 {[%emt 0:02:40]} Nd7 {[%emt 0:01:26]} 34. Red2 {[%emt 0:00:42]} Nb8 {[%emt 0:01:56] Black is clearly winning.} 35. Kb1 {[%emt 0:04:49]} Bxc3 {[%emt 0:04:12]} 36. Nxc3 {[%emt 0:01:02]} Rxc3 {[%emt 0:00:04]} 37. Rxc3 {[%emt 0:00:15]} Rxc3 {[%emt 0:00:02]} 38. Rxd5 {[%emt 0:00:10]} Rxb3+ {[%emt 0:00:19]} 39. Kc2 {[%emt 0:00:05]} Ra3 {[%emt 0:00:18]} 40. Bh2 {[%emt 0:02:02]} Nc6 {[%emt 0:01:51] Weighted Error Value: White=0.48/Black=0.18 (very precise)} 0-1